[Event "*** SCC Grand Prix: Titled Tuesday Blitz"]
[Site "Chess.com"]
[Date "2020.10.06"]
[Round "7"]
[White "Obito24"]
[Black "andresgv36"]
[Result "1-0"]
[WhiteElo "2557"]
[BlackElo "2414"]
[TimeControl "180+1"]
[EndTime "11:19:32 PDT"]
[Termination "Obito24 won on time"]

1. d4 {[%clk 0:03:00.9]} 1... Nf6 {[%clk 0:02:51.3]} 2. Nf3 {[%clk 0:02:58.9]}
2... g6 {[%clk 0:02:46.8]} 3. b3 {[%clk 0:02:59.2]} 3... Bg7 {[%clk 0:02:45.7]}
4. Bb2 {[%clk 0:02:57.5]} 4... O-O {[%clk 0:02:46]} 5. Nbd2 {[%clk 0:02:56.7]}
5... d6 {[%clk 0:02:38.9]} 6. e3 {[%clk 0:02:55.4]} 6... Nbd7 {[%clk 0:02:37.9]}
7. Be2 {[%clk 0:02:55.4]} 7... Re8 {[%clk 0:02:31.1]} 8. O-O {[%clk 0:02:55.8]}
8... e5 {[%clk 0:02:31.1]} 9. dxe5 {[%clk 0:02:48.4]} 9... dxe5 {[%clk
0:02:29.9]} 10. Nc4 {[%clk 0:02:30.9]} 10... e4 {[%clk 0:02:27.3]} 11. Nfe5
{[%clk 0:02:17.3]} 11... Qe7 {[%clk 0:01:18.6]} 12. a4 {[%clk 0:01:57.1]} 12...
Rd8 {[%clk 0:01:10.8]} 13. Qc1 {[%clk 0:01:32.2]} 13... Nf8 {[%clk 0:00:38.7]}
14. h3 {[%clk 0:01:17.6]} 14... h5 {[%clk 0:00:37.8]} 15. a5 {[%clk 0:01:16.2]}
15... a6 {[%clk 0:00:33.2]} 16. Bc3 {[%clk 0:01:14.1]} 16... Ne8 {[%clk
0:00:24.7]} 17. Qb2 {[%clk 0:01:10.5]} 17... f6 {[%clk 0:00:23.7]} 18. Nxg6
{[%clk 0:01:03.7]} 18... Nxg6 {[%clk 0:00:23.5]} 19. Bxh5 {[%clk 0:01:04.6]}
19... Nh4 {[%clk 0:00:18.8]} 20. Rad1 {[%clk 0:00:48.1]} 20... Be6 {[%clk
0:00:18.3]} 21. Nd2 {[%clk 0:00:46.2]} 21... f5 {[%clk 0:00:13.5]} 22. Be5
{[%clk 0:00:44.9]} 22... Bxe5 {[%clk 0:00:13]} 23. Qxe5 {[%clk 0:00:44.1]} 23...
Qf6 {[%clk 0:00:09.3]} 24. Qf4 {[%clk 0:00:43.7]} 24... Nd6 {[%clk 0:00:08.4]}
25. c4 {[%clk 0:00:33.3]} 25... Ng6 {[%clk 0:00:08.3]} 26. Qh6 {[%clk
0:00:29.1]} 26... Bf7 {[%clk 0:00:08.3]} 27. c5 {[%clk 0:00:27.3]} 27... Nb5
{[%clk 0:00:07.8]} 28. Nc4 {[%clk 0:00:27]} 28... Rxd1 {[%clk 0:00:06.6]} 29.
Rxd1 {[%clk 0:00:26.5]} 29... Qg7 {[%clk 0:00:07]} 30. Qg5 {[%clk 0:00:25.5]}
30... Nc3 {[%clk 0:00:04.9]} 31. Rd7 {[%clk 0:00:24.5]} 31... Ne5 {[%clk
0:00:04.6]} 32. Bxf7+ {[%clk 0:00:17.6]} 32... Nxf7 {[%clk 0:00:03.5]} 33. Qxf5
{[%clk 0:00:16.8]} 33... Ne2+ {[%clk 0:00:02.9]} 34. Kf1 {[%clk 0:00:15.4]}
34... Rf8 {[%clk 0:00:01.3]} 35. Kxe2 {[%clk 0:00:14.9]} 35... Qa1 {[%clk
0:00:01.6]} 36. Qg6+ {[%clk 0:00:14.1]} 36... Kh8 {[%clk 0:00:01.6]} 37. Rxf7
{[%clk 0:00:14]} 37... Qa2+ {[%clk 0:00:01.9]} 38. Nd2 {[%clk 0:00:14.1]} 1-0

[Event "*** SCC Grand Prix: Titled Tuesday Blitz"]
[Site "Chess.com"]
[Date "2020.10.06"]
[Round "7"]
[White "Sashadav97"]
[Black "banane_verte"]
[Result "1-0"]
[WhiteElo "2605"]
[BlackElo "2453"]
[TimeControl "180+1"]
[EndTime "11:19:34 PDT"]
[Termination "Sashadav97 won by checkmate"]

1. d4 {[%clk 0:03:00.9]} 1... Nf6 {[%clk 0:03:00]} 2. c4 {[%clk 0:03:00.4]} 2...
e6 {[%clk 0:03:00.4]} 3. Nc3 {[%clk 0:02:59.4]} 3... Bb4 {[%clk 0:03:00.9]} 4.
a3 {[%clk 0:03:00]} 4... Bxc3+ {[%clk 0:03:00.5]} 5. bxc3 {[%clk 0:03:00.9]}
5... b6 {[%clk 0:03:00.5]} 6. e3 {[%clk 0:02:59.9]} 6... Nc6 {[%clk 0:02:59.1]}
7. Bd3 {[%clk 0:02:59.1]} 7... Ba6 {[%clk 0:02:58.6]} 8. e4 {[%clk 0:02:57]}
8... Na5 {[%clk 0:02:54.5]} 9. Qe2 {[%clk 0:02:56.8]} 9... d6 {[%clk 0:02:52.9]}
10. Nf3 {[%clk 0:02:54.1]} 10... Qd7 {[%clk 0:02:49.7]} 11. O-O {[%clk
0:02:49.9]} 11... Qa4 {[%clk 0:02:41.8]} 12. e5 {[%clk 0:02:41.8]} 12... Nd7
{[%clk 0:02:32.6]} 13. exd6 {[%clk 0:02:37.2]} 13... cxd6 {[%clk 0:02:32]} 14.
Nd2 {[%clk 0:02:38.1]} 14... O-O {[%clk 0:02:26.9]} 15. Rb1 {[%clk 0:02:36.2]}
15... Rab8 {[%clk 0:02:22.3]} 16. Ne4 {[%clk 0:02:13.4]} 16... Bxc4 {[%clk
0:02:13.5]} 17. Nxd6 {[%clk 0:02:08]} 17... Bxd3 {[%clk 0:02:13.4]} 18. Qxd3
{[%clk 0:02:08.9]} 18... Qc6 {[%clk 0:02:10.9]} 19. Ne4 {[%clk 0:02:07.9]} 19...
Rbc8 {[%clk 0:02:05.7]} 20. Bf4 {[%clk 0:02:03.3]} 20... Nc4 {[%clk 0:01:47.4]}
21. Ra1 {[%clk 0:01:54.4]} 21... Rfd8 {[%clk 0:01:41]} 22. Qe2 {[%clk
0:01:44.9]} 22... Nf8 {[%clk 0:01:28.2]} 23. h4 {[%clk 0:01:39.8]} 23... Ng6
{[%clk 0:01:28.2]} 24. Bg3 {[%clk 0:01:39.9]} 24... Ne7 {[%clk 0:01:27.9]} 25.
h5 {[%clk 0:01:38.1]} 25... h6 {[%clk 0:01:26.9]} 26. Bh4 {[%clk 0:01:34]} 26...
Rd7 {[%clk 0:01:25.8]} 27. Bxe7 {[%clk 0:01:30.2]} 27... Rxe7 {[%clk 0:01:26.7]}
28. Rfd1 {[%clk 0:01:29.2]} 28... Qd5 {[%clk 0:01:21.8]} 29. Rd3 {[%clk
0:01:27.2]} 29... Nd6 {[%clk 0:01:12.4]} 30. Nxd6 {[%clk 0:01:25.4]} 30... Qxd6
{[%clk 0:01:13.3]} 31. a4 {[%clk 0:01:24]} 31... Rec7 {[%clk 0:01:13.3]} 32. Qd2
{[%clk 0:01:18]} 32... Qd5 {[%clk 0:01:10.7]} 33. Rh3 {[%clk 0:01:17.9]} 33...
Qa5 {[%clk 0:01:08.3]} 34. Ra3 {[%clk 0:01:08.4]} 34... Qg5 {[%clk 0:01:04.3]}
35. Qd1 {[%clk 0:00:59.4]} 35... Qa5 {[%clk 0:00:56.4]} 36. Qc1 {[%clk
0:00:47.9]} 36... Rc4 {[%clk 0:00:53.7]} 37. Qd2 {[%clk 0:00:25.3]} 37... Rxa4
{[%clk 0:00:51.9]} 38. Rxa4 {[%clk 0:00:26.2]} 38... Qxa4 {[%clk 0:00:52.8]} 39.
Rg3 {[%clk 0:00:27.1]} 39... Kf8 {[%clk 0:00:48.7]} 40. Qf4 {[%clk 0:00:26.8]}
40... Qd1+ {[%clk 0:00:45.5]} 41. Kh2 {[%clk 0:00:26]} 41... Qxh5+ {[%clk
0:00:46]} 42. Kg1 {[%clk 0:00:24.2]} 42... Qd5 {[%clk 0:00:32.1]} 43. c4 {[%clk
0:00:22.6]} 43... Qxc4 {[%clk 0:00:28.9]} 44. Qd6+ {[%clk 0:00:21]} 44... Ke8
{[%clk 0:00:28.7]} 45. Rxg7 {[%clk 0:00:19]} 45... f5 {[%clk 0:00:10.7]} 46.
Qe7# {[%clk 0:00:17.9]} 1-0

[Event "*** SCC Grand Prix: Titled Tuesday Blitz"]
[Site "Chess.com"]
[Date "2020.10.06"]
[Round "7"]
[White "Das_Virus_2020"]
[Black "Chessbard1972"]
[Result "1-0"]
[WhiteElo "2385"]
[BlackElo "2262"]
[TimeControl "180+1"]
[EndTime "11:19:34 PDT"]
[Termination "Das_Virus_2020 won on time"]

1. e4 {[%clk 0:03:00.9]} 1... c5 {[%clk 0:02:59]} 2. Nc3 {[%clk 0:03:00.3]} 2...
a6 {[%clk 0:02:57.6]} 3. f4 {[%clk 0:03:00.7]} 3... b5 {[%clk 0:02:56.5]} 4. Nf3
{[%clk 0:03:00.2]} 4... Bb7 {[%clk 0:02:56.9]} 5. d3 {[%clk 0:03:00.6]} 5... e6
{[%clk 0:02:56.6]} 6. Be2 {[%clk 0:03:00.9]} 6... Nf6 {[%clk 0:02:56.5]} 7. O-O
{[%clk 0:03:00.5]} 7... b4 {[%clk 0:02:56.3]} 8. Nb1 {[%clk 0:02:59.8]} 8... d5
{[%clk 0:02:56.1]} 9. e5 {[%clk 0:02:59.8]} 9... Nfd7 {[%clk 0:02:55]} 10. d4
{[%clk 0:02:59]} 10... Nc6 {[%clk 0:02:54.9]} 11. Be3 {[%clk 0:02:58.7]} 11...
Qb6 {[%clk 0:02:54.3]} 12. Kh1 {[%clk 0:02:48.5]} 12... cxd4 {[%clk 0:02:51.6]}
13. Nxd4 {[%clk 0:02:48]} 13... Bc5 {[%clk 0:02:51.5]} 14. c3 {[%clk 0:02:47.5]}
14... a5 {[%clk 0:02:49.6]} 15. f5 {[%clk 0:02:21.9]} 15... exf5 {[%clk
0:02:46.4]} 16. Rxf5 {[%clk 0:02:04.3]} 16... O-O {[%clk 0:02:44.2]} 17. Nd2
{[%clk 0:01:23.7]} 17... a4 {[%clk 0:02:31.5]} 18. N2f3 {[%clk 0:01:20.9]} 18...
a3 {[%clk 0:02:19.2]} 19. cxb4 {[%clk 0:01:17.3]} 19... Qxb4 {[%clk 0:02:16.2]}
20. bxa3 {[%clk 0:01:10.5]} 20... Qxa3 {[%clk 0:02:08.7]} 21. Bg1 {[%clk
0:01:04.8]} 21... Rae8 {[%clk 0:02:03.7]} 22. Rc1 {[%clk 0:00:52.4]} 22... Bxd4
{[%clk 0:01:54.3]} 23. Nxd4 {[%clk 0:00:48.1]} 23... Ncxe5 {[%clk 0:01:34.4]}
24. Nb5 {[%clk 0:00:38.8]} 24... Qxa2 {[%clk 0:01:27.1]} 25. Nd6 {[%clk
0:00:35.6]} 25... Rb8 {[%clk 0:01:22.6]} 26. Bd4 {[%clk 0:00:24.9]} 26... Ng6
{[%clk 0:01:07.9]} 27. Ra1 {[%clk 0:00:21.7]} 27... Qxa1 {[%clk 0:00:45.2]} 28.
Bxa1 {[%clk 0:00:21.5]} 28... Bc6 {[%clk 0:00:44.7]} 29. h4 {[%clk 0:00:19.8]}
29... Nxh4 {[%clk 0:00:41.1]} 30. Rh5 {[%clk 0:00:19.4]} 30... Ng6 {[%clk
0:00:40.4]} 31. Qd4 {[%clk 0:00:19.4]} 31... f6 {[%clk 0:00:37.2]} 32. Bd3
{[%clk 0:00:19]} 32... Nde5 {[%clk 0:00:36.6]} 33. Kh2 {[%clk 0:00:17.7]} 33...
Rb3 {[%clk 0:00:33.2]} 34. Bf5 {[%clk 0:00:15.7]} 34... Kh8 {[%clk 0:00:22]} 35.
Be6 {[%clk 0:00:14.6]} 35... Rd3 {[%clk 0:00:15.7]} 36. Qc5 {[%clk 0:00:13.4]}
36... Rd1 {[%clk 0:00:11]} 37. Nf5 {[%clk 0:00:11.1]} 37... Rd8 {[%clk
0:00:06.3]} 38. Nd4 {[%clk 0:00:09.3]} 1-0

[Event "*** SCC Grand Prix: Titled Tuesday Blitz"]
[Site "Chess.com"]
[Date "2020.10.06"]
[Round "7"]
[White "Aleksey_Sorokin"]
[Black "Mazetovic"]
[Result "1-0"]
[WhiteElo "2820"]
[BlackElo "2618"]
[TimeControl "180+1"]
[EndTime "11:19:35 PDT"]
[Termination "Aleksey_Sorokin won by resignation"]

1. d4 {[%clk 0:03:00.9]} 1... Nf6 {[%clk 0:02:57]} 2. c4 {[%clk 0:03:01.8]} 2...
g6 {[%clk 0:02:54.6]} 3. Nc3 {[%clk 0:03:01.5]} 3... Bg7 {[%clk 0:02:51]} 4. e4
{[%clk 0:03:01.6]} 4... d6 {[%clk 0:02:51.1]} 5. Nf3 {[%clk 0:03:02.5]} 5... O-O
{[%clk 0:02:49.9]} 6. Be2 {[%clk 0:03:03.4]} 6... Na6 {[%clk 0:02:49.6]} 7. O-O
{[%clk 0:03:04.3]} 7... e5 {[%clk 0:02:49.7]} 8. Be3 {[%clk 0:03:04.4]} 8... c6
{[%clk 0:02:49.7]} 9. d5 {[%clk 0:03:03.2]} 9... Ng4 {[%clk 0:02:48.2]} 10. Bg5
{[%clk 0:03:03]} 10... f6 {[%clk 0:02:48.3]} 11. Bh4 {[%clk 0:03:01.6]} 11... c5
{[%clk 0:02:48.7]} 12. Ne1 {[%clk 0:02:57.1]} 12... h5 {[%clk 0:02:48.2]} 13. a3
{[%clk 0:02:55.3]} 13... Nh6 {[%clk 0:02:47.3]} 14. Bg3 {[%clk 0:02:54.5]} 14...
Nf7 {[%clk 0:02:47.1]} 15. Nd3 {[%clk 0:02:53.6]} 15... Bh6 {[%clk 0:02:47.3]}
16. b4 {[%clk 0:02:53.1]} 16... b6 {[%clk 0:02:46.6]} 17. Rb1 {[%clk 0:02:51]}
17... f5 {[%clk 0:02:45.8]} 18. exf5 {[%clk 0:02:49.4]} 18... Bxf5 {[%clk
0:02:43.5]} 19. f3 {[%clk 0:02:46.7]} 19... Be3+ {[%clk 0:02:42.3]} 20. Kh1
{[%clk 0:02:46.7]} 20... Bd4 {[%clk 0:02:41.5]} 21. Ne4 {[%clk 0:02:46.1]} 21...
Bxe4 {[%clk 0:02:24.7]} 22. fxe4 {[%clk 0:02:47]} 22... Qg5 {[%clk 0:02:23.1]}
23. bxc5 {[%clk 0:02:35.8]} 23... Nxc5 {[%clk 0:02:22.7]} 24. Nxc5 {[%clk
0:02:35.8]} 24... Bxc5 {[%clk 0:02:21.3]} 25. Rb3 {[%clk 0:02:32.6]} 25... Nh6
{[%clk 0:02:20.6]} 26. h4 {[%clk 0:02:28.8]} 26... Rxf1+ {[%clk 0:02:14.1]} 27.
Qxf1 {[%clk 0:02:29.7]} 27... Qe7 {[%clk 0:02:14]} 28. Rf3 {[%clk 0:02:23.5]}
28... Ng4 {[%clk 0:02:10.9]} 29. a4 {[%clk 0:02:18.7]} 29... Kg7 {[%clk
0:02:09.4]} 30. Qc1 {[%clk 0:02:10]} 30... Nh6 {[%clk 0:01:26]} 31. Rf1 {[%clk
0:02:06.8]} 31... Rf8 {[%clk 0:01:22.3]} 32. Bf3 {[%clk 0:02:04.6]} 32... a5
{[%clk 0:01:05.7]} 33. Qe1 {[%clk 0:01:51.1]} 33... Qd7 {[%clk 0:01:03.5]} 34.
Qd1 {[%clk 0:01:48.1]} 34... Be3 {[%clk 0:00:51.6]} 35. Qe1 {[%clk 0:01:44.6]}
35... Bd4 {[%clk 0:00:50.7]} 36. Bd1 {[%clk 0:01:44]} 36... Rxf1+ {[%clk
0:00:48.7]} 37. Qxf1 {[%clk 0:01:44.5]} 37... Qc7 {[%clk 0:00:42.7]} 38. Be1
{[%clk 0:01:37.1]} 38... Qc5 {[%clk 0:00:38.9]} 39. Qf3 {[%clk 0:01:31.4]} 39...
Qxc4 {[%clk 0:00:34.3]} 40. Bd2 {[%clk 0:01:31.4]} 40... Ng4 {[%clk 0:00:25.7]}
41. g3 {[%clk 0:01:05.3]} 41... Qa2 {[%clk 0:00:21.1]} 42. Qe2 {[%clk
0:00:52.4]} 42... Nf2+ {[%clk 0:00:19.8]} 43. Kg2 {[%clk 0:00:52.5]} 43... Nxe4
{[%clk 0:00:19.6]} 44. Bh6+ {[%clk 0:00:52.5]} 44... Kxh6 {[%clk 0:00:17.6]} 45.
Qxa2 {[%clk 0:00:53.4]} 45... Nc3 {[%clk 0:00:13.1]} 46. Qd2+ {[%clk 0:00:53.1]}
46... Kg7 {[%clk 0:00:12.8]} 47. Bb3 {[%clk 0:00:48.9]} 47... Ne4 {[%clk
0:00:12.5]} 48. Qe2 {[%clk 0:00:47.2]} 48... Nf6 {[%clk 0:00:10.3]} 49. Qb5
{[%clk 0:00:44.3]} 49... e4 {[%clk 0:00:08]} 50. Qc6 {[%clk 0:00:42.9]} 50...
Bc5 {[%clk 0:00:07.9]} 51. Qc7+ {[%clk 0:00:42.8]} 51... Kh6 {[%clk 0:00:07.5]}
52. Qe7 {[%clk 0:00:39.8]} 52... Ng4 {[%clk 0:00:04.2]} 53. Qxe4 {[%clk
0:00:37.6]} 1-0

[Event "*** SCC Grand Prix: Titled Tuesday Blitz"]
[Site "Chess.com"]
[Date "2020.10.06"]
[Round "7"]
[White "Gerodot71"]
[Black "elamier"]
[Result "0-1"]
[WhiteElo "2458"]
[BlackElo "2359"]
[TimeControl "180+1"]
[EndTime "11:19:35 PDT"]
[Termination "elamier won on time"]

1. d4 {[%clk 0:03:00.9]} 1... d5 {[%clk 0:02:59.6]} 2. c4 {[%clk 0:02:57.8]}
2... c6 {[%clk 0:02:59.5]} 3. Nf3 {[%clk 0:02:58]} 3... Nf6 {[%clk 0:02:59]} 4.
Nc3 {[%clk 0:02:57.3]} 4... dxc4 {[%clk 0:02:58.9]} 5. a4 {[%clk 0:02:55.9]}
5... e5 {[%clk 0:02:58.9]} 6. Nxe5 {[%clk 0:02:53]} 6... Bb4 {[%clk 0:02:57.8]}
7. Nxc4 {[%clk 0:02:50.8]} 7... c5 {[%clk 0:02:56.6]} 8. e3 {[%clk 0:02:46]}
8... Nc6 {[%clk 0:02:55.4]} 9. dxc5 {[%clk 0:02:39.9]} 9... Qxd1+ {[%clk
0:02:48.4]} 10. Kxd1 {[%clk 0:02:40.8]} 10... O-O {[%clk 0:02:45.6]} 11. f3
{[%clk 0:02:33.1]} 11... Rd8+ {[%clk 0:02:39.4]} 12. Ke1 {[%clk 0:02:31.4]}
12... Bxc5 {[%clk 0:02:35.5]} 13. Bd2 {[%clk 0:02:13.2]} 13... Nb4 {[%clk
0:02:33.8]} 14. Rd1 {[%clk 0:02:05.3]} 14... Be6 {[%clk 0:02:27.6]} 15. Ne5
{[%clk 0:01:50.4]} 15... Nc2+ {[%clk 0:02:21.9]} 16. Ke2 {[%clk 0:01:35]} 16...
Nd7 {[%clk 0:02:18.2]} 17. Nxd7 {[%clk 0:01:25.1]} 17... Rxd7 {[%clk 0:02:17.6]}
18. Ne4 {[%clk 0:01:14.8]} 18... Bc4+ {[%clk 0:02:06.5]} 19. Kf2 {[%clk
0:01:14.1]} 19... Bxe3+ {[%clk 0:01:58.6]} 20. Kg3 {[%clk 0:00:40.8]} 20... Be6
{[%clk 0:01:36.5]} 21. Bb5 {[%clk 0:00:34.7]} 21... Rdd8 {[%clk 0:01:26.5]} 22.
Bc3 {[%clk 0:00:32.3]} 22... Nd4 {[%clk 0:01:22.2]} 23. h3 {[%clk 0:00:20.4]}
23... a6 {[%clk 0:01:14.3]} 24. Bd3 {[%clk 0:00:14.7]} 24... Rd7 {[%clk
0:01:00]} 25. Kh2 {[%clk 0:00:11.8]} 25... Rad8 {[%clk 0:00:56.2]} 26. Rde1
{[%clk 0:00:09.1]} 26... Bf4+ {[%clk 0:00:54.8]} 27. Kg1 {[%clk 0:00:07.7]}
27... Nxf3+ {[%clk 0:00:53.3]} 28. gxf3 {[%clk 0:00:08.6]} 28... Rxd3 {[%clk
0:00:52.9]} 29. Kg2 {[%clk 0:00:09]} 29... Bf5 {[%clk 0:00:44.4]} 30. Re2 {[%clk
0:00:07.7]} 30... Bxe4 {[%clk 0:00:42]} 31. Rxe4 {[%clk 0:00:08.6]} 31... Bd2
{[%clk 0:00:41.8]} 32. Rd1 {[%clk 0:00:07.1]} 32... f5 {[%clk 0:00:38.6]} 33.
Re7 {[%clk 0:00:03.9]} 33... Bxc3 {[%clk 0:00:37.6]} 34. Rxd3 {[%clk 0:00:04.5]}
34... Rxd3 {[%clk 0:00:37.9]} 35. bxc3 {[%clk 0:00:05.4]} 35... Rxc3 {[%clk
0:00:37.5]} 36. Rxb7 {[%clk 0:00:05.4]} 36... Rc4 {[%clk 0:00:37.4]} 37. a5
{[%clk 0:00:02.2]} 37... Rc5 {[%clk 0:00:36.8]} 38. Ra7 {[%clk 0:00:03.1]} 38...
Rxa5 {[%clk 0:00:36.2]} 39. Kg3 {[%clk 0:00:04]} 39... Ra4 {[%clk 0:00:33.5]}
40. h4 {[%clk 0:00:04.2]} 40... h6 {[%clk 0:00:32.2]} 41. h5 {[%clk 0:00:03.2]}
41... Kh7 {[%clk 0:00:32]} 42. Kh3 {[%clk 0:00:03]} 42... Ra1 {[%clk 0:00:28.8]}
43. Kg3 {[%clk 0:00:01.6]} 43... Rg1+ {[%clk 0:00:27.6]} 44. Kh2 {[%clk
0:00:01.2]} 44... Rg5 {[%clk 0:00:27.2]} 0-1

[Event "*** SCC Grand Prix: Titled Tuesday Blitz"]
[Site "Chess.com"]
[Date "2020.10.06"]
[Round "7"]
[White "GigaQuparadze"]
[Black "Keithonsky"]
[Result "1-0"]
[WhiteElo "3003"]
[BlackElo "2604"]
[TimeControl "180+1"]
[EndTime "11:19:36 PDT"]
[Termination "GigaQuparadze won by resignation"]

1. e4 {[%clk 0:03:00.9]} 1... e6 {[%clk 0:02:59.6]} 2. d4 {[%clk 0:03:00.3]}
2... d5 {[%clk 0:03:00]} 3. Nd2 {[%clk 0:03:00.9]} 3... c5 {[%clk 0:02:59.3]} 4.
Ngf3 {[%clk 0:03:00.6]} 4... cxd4 {[%clk 0:02:59.3]} 5. Nxd4 {[%clk 0:03:01.5]}
5... Nf6 {[%clk 0:02:56.9]} 6. Bd3 {[%clk 0:03:01.5]} 6... Be7 {[%clk
0:02:55.8]} 7. e5 {[%clk 0:02:57.1]} 7... Nfd7 {[%clk 0:02:55.3]} 8. f4 {[%clk
0:02:36]} 8... Bc5 {[%clk 0:02:52.9]} 9. c3 {[%clk 0:02:34.3]} 9... Nc6 {[%clk
0:02:49.4]} 10. N2f3 {[%clk 0:02:33.7]} 10... h6 {[%clk 0:02:38.8]} 11. O-O
{[%clk 0:02:32.8]} 11... O-O {[%clk 0:02:38.6]} 12. Kh1 {[%clk 0:02:31.9]} 12...
Qe7 {[%clk 0:02:27.4]} 13. Bc2 {[%clk 0:02:31.7]} 13... f5 {[%clk 0:02:26.9]}
14. exf6 {[%clk 0:02:31.2]} 14... Qxf6 {[%clk 0:02:27]} 15. Qd3 {[%clk
0:02:22.8]} 15... Bxd4 {[%clk 0:02:20.5]} 16. cxd4 {[%clk 0:02:08.9]} 16... Qf5
{[%clk 0:02:18.4]} 17. Qe2 {[%clk 0:02:03.9]} 17... Qf6 {[%clk 0:02:15]} 18. Be3
{[%clk 0:02:03.6]} 18... Nb6 {[%clk 0:02:12.3]} 19. Ne5 {[%clk 0:02:01.8]} 19...
Bd7 {[%clk 0:02:12]} 20. Qd3 {[%clk 0:01:59.2]} 20... Qf5 {[%clk 0:02:09.2]} 21.
Qd1 {[%clk 0:01:56.7]} 21... Qf6 {[%clk 0:02:08.3]} 22. b3 {[%clk 0:01:35.9]}
22... Be8 {[%clk 0:02:01.2]} 23. Qd3 {[%clk 0:01:33.2]} 23... Qf5 {[%clk
0:02:00.7]} 24. Qe2 {[%clk 0:01:33.1]} 24... Qf6 {[%clk 0:02:00.2]} 25. Rae1
{[%clk 0:01:29.8]} 25... Ne7 {[%clk 0:01:47.1]} 26. Bg1 {[%clk 0:01:27.4]} 26...
a6 {[%clk 0:01:46.8]} 27. Ng4 {[%clk 0:01:27]} 27... Qf7 {[%clk 0:01:37.9]} 28.
Qxe6 {[%clk 0:01:19.1]} 28... Qxe6 {[%clk 0:01:35.1]} 29. Rxe6 {[%clk 0:01:20]}
29... Nc6 {[%clk 0:01:35.6]} 30. Ne5 {[%clk 0:01:13.4]} 30... Nc8 {[%clk
0:01:24.6]} 31. Ng6 {[%clk 0:01:09.9]} 31... Bxg6 {[%clk 0:01:23.3]} 32. Bxg6
{[%clk 0:01:10.8]} 32... N8e7 {[%clk 0:01:22.1]} 33. Bb1 {[%clk 0:01:08.8]}
33... Rf6 {[%clk 0:01:21.3]} 34. Rxf6 {[%clk 0:01:07.4]} 34... gxf6 {[%clk
0:01:22.2]} 35. g4 {[%clk 0:01:07.1]} 35... Kf7 {[%clk 0:01:22]} 36. g5 {[%clk
0:01:06.8]} 36... Rh8 {[%clk 0:01:19]} 37. gxf6 {[%clk 0:01:02]} 37... Kxf6
{[%clk 0:01:18.8]} 38. f5 {[%clk 0:01:01.7]} 38... Rg8 {[%clk 0:01:13.5]} 39.
Bf2 {[%clk 0:01:01.8]} 39... Rg4 {[%clk 0:01:12.9]} 40. Be3 {[%clk 0:00:53.1]}
40... Nxd4 {[%clk 0:01:05.5]} 41. Bxh6 {[%clk 0:00:46.1]} 41... Ndxf5 {[%clk
0:01:05.3]} 42. Bf8 {[%clk 0:00:46.1]} 42... Ke6 {[%clk 0:01:00.8]} 43. Re1+
{[%clk 0:00:45.8]} 43... Kd7 {[%clk 0:01:00.2]} 44. Rf1 {[%clk 0:00:45.5]} 44...
Ke6 {[%clk 0:00:58]} 45. Re1+ {[%clk 0:00:43]} 45... Kd7 {[%clk 0:00:58.2]} 46.
Rd1 {[%clk 0:00:43.5]} 46... Ke6 {[%clk 0:00:54.8]} 47. Bxe7 {[%clk 0:00:41]}
47... Nxe7 {[%clk 0:00:54.4]} 48. Bd3 {[%clk 0:00:41.6]} 48... Nc6 {[%clk
0:00:51.1]} 49. Be2 {[%clk 0:00:41.7]} 49... Rf4 {[%clk 0:00:50.1]} 50. Kg2
{[%clk 0:00:41.9]} 50... Nd4 {[%clk 0:00:49.1]} 51. Rd2 {[%clk 0:00:39.6]} 51...
Ke5 {[%clk 0:00:45.6]} 52. Bd1 {[%clk 0:00:39.9]} 52... Nf5 {[%clk 0:00:43.5]}
53. Re2+ {[%clk 0:00:40.2]} 53... Re4 {[%clk 0:00:43.6]} 54. Kf2 {[%clk
0:00:39]} 54... Kf4 {[%clk 0:00:42.5]} 55. Bc2 {[%clk 0:00:37.3]} 55... Rxe2+
{[%clk 0:00:41.8]} 56. Kxe2 {[%clk 0:00:37.8]} 56... Nd4+ {[%clk 0:00:35]} 57.
Kd3 {[%clk 0:00:38.1]} 57... Nf3 {[%clk 0:00:34.6]} 1-0

[Event "*** SCC Grand Prix: Titled Tuesday Blitz"]
[Site "Chess.com"]
[Date "2020.10.06"]
[Round "7"]
[White "r31415"]
[Black "Chamal_Gedgafov"]
[Result "1-0"]
[WhiteElo "2478"]
[BlackElo "2175"]
[TimeControl "180+1"]
[EndTime "11:19:36 PDT"]
[Termination "r31415 won by resignation"]

1. c4 {[%clk 0:03:00.9]} 1... Nf6 {[%clk 0:02:57.7]} 2. Nc3 {[%clk 0:03:01]}
2... c5 {[%clk 0:02:58.3]} 3. Nf3 {[%clk 0:03:00.7]} 3... d5 {[%clk 0:02:57.9]}
4. cxd5 {[%clk 0:03:00.1]} 4... Nxd5 {[%clk 0:02:58.8]} 5. e4 {[%clk 0:02:57.8]}
5... Nc7 {[%clk 0:02:56.2]} 6. d4 {[%clk 0:02:51.2]} 6... cxd4 {[%clk
0:02:55.3]} 7. Qxd4 {[%clk 0:02:52.1]} 7... Nc6 {[%clk 0:02:52.2]} 8. Qxd8+
{[%clk 0:02:50.9]} 8... Nxd8 {[%clk 0:02:49.4]} 9. Ne5 {[%clk 0:02:47]} 9... a6
{[%clk 0:02:35.8]} 10. Be3 {[%clk 0:02:39.3]} 10... e6 {[%clk 0:02:32.8]} 11.
O-O-O {[%clk 0:02:32.8]} 11... f6 {[%clk 0:02:09.9]} 12. Nc4 {[%clk 0:02:26.5]}
12... b5 {[%clk 0:02:00.7]} 13. Na5 {[%clk 0:02:14.2]} 13... e5 {[%clk
0:01:52.6]} 14. Bb6 {[%clk 0:02:13.1]} 14... Nce6 {[%clk 0:01:51.3]} 15. Nd5
{[%clk 0:02:11.3]} 15... Be7 {[%clk 0:01:49]} 16. Be2 {[%clk 0:01:41.5]} 16...
Kf7 {[%clk 0:01:44.8]} 17. Bg4 {[%clk 0:01:24.3]} 17... Nf4 {[%clk 0:01:26.2]}
18. Bf3 {[%clk 0:01:13.2]} 18... Nxd5 {[%clk 0:01:12.9]} 19. exd5 {[%clk
0:01:12.8]} 19... Bd6 {[%clk 0:01:11.6]} 20. Nc6 {[%clk 0:01:09.8]} 20... Nb7
{[%clk 0:01:03.6]} 21. b4 {[%clk 0:00:54.9]} 21... Bf5 {[%clk 0:00:37.9]} 22. g4
{[%clk 0:00:53.3]} 22... Bd7 {[%clk 0:00:33.3]} 23. Kb2 {[%clk 0:00:52.4]} 23...
Be7 {[%clk 0:00:16.1]} 24. Nxe7 {[%clk 0:00:43.6]} 24... Nd6 {[%clk 0:00:09]}
25. Nf5 {[%clk 0:00:13.5]} 25... Nc4+ {[%clk 0:00:08.2]} 26. Kb3 {[%clk
0:00:14.4]} 26... Nxb6 {[%clk 0:00:08.5]} 27. Rc1 {[%clk 0:00:15]} 27... Rac8
{[%clk 0:00:08.3]} 28. Nd6+ {[%clk 0:00:14.9]} 28... Ke7 {[%clk 0:00:07.7]} 29.
Nxc8+ {[%clk 0:00:15.8]} 29... Rxc8 {[%clk 0:00:07.5]} 30. Rxc8 {[%clk
0:00:16.1]} 30... Bxc8 {[%clk 0:00:07.9]} 31. Rc1 {[%clk 0:00:16.4]} 31... Bd7
{[%clk 0:00:08.3]} 32. Rc7 {[%clk 0:00:16.6]} 32... Kd6 {[%clk 0:00:08.6]} 33.
Rb7 {[%clk 0:00:17]} 33... Nxd5 {[%clk 0:00:08.8]} 34. Bxd5 {[%clk 0:00:16.2]}
34... Bxg4 {[%clk 0:00:08.9]} 35. Bg8 {[%clk 0:00:13.4]} 35... h6 {[%clk
0:00:08.1]} 36. Rxg7 {[%clk 0:00:12.8]} 36... Be2 {[%clk 0:00:07.6]} 37. Rg6
{[%clk 0:00:12]} 37... Ke7 {[%clk 0:00:06.9]} 38. Rxh6 {[%clk 0:00:12.3]} 38...
f5 {[%clk 0:00:07.8]} 39. Bd5 {[%clk 0:00:11.8]} 39... f4 {[%clk 0:00:07.9]} 40.
Re6+ {[%clk 0:00:12.1]} 40... Kd7 {[%clk 0:00:07.7]} 41. Rxe5 {[%clk 0:00:13]}
41... Kd6 {[%clk 0:00:08.6]} 42. Rxe2 {[%clk 0:00:12.7]} 42... Kxd5 {[%clk
0:00:08.2]} 43. Re1 {[%clk 0:00:13.6]} 1-0